fUSD/lending_fUSD_20240429
["ID","MTS","AMOUNT","RATE_DAILY","PERIOD"]
[324836397,1714365041651,-216.0,0.00012973,2]
[324836398,1714365041660,-150.807,0.00012973,2]
[324836399,1714365041669,-446.153,0.00012973,2]
[324836400,1714365041678,-1143.459,0.00012973,2]
[324836401,1714365041687,-463.573,0.00012973,2]
[324836402,1714365041696,-2190.95031989,0.00012973,2]
[324836417,1714365042620,-114.54068011,0.00012973,2]
[324836418,1714365042630,-1139.97541513,0.00012973,2]
[324836419,1714365042735,-259.84258487,0.00012973,2]
[324836420,1714365042744,-973.257,0.00012973,2]
[324836421,1714365042753,-186.037,0.00012973,2]
[324836422,1714365042763,-543.971,0.00012973,2]
[324836423,1714365042772,-1262.514,0.00012973,2]
[324836424,1714365042781,-318.24255182,0.00012977,2]
[324836440,1714365045949,-500.0,0.00012899,2]
[324836441,1714365045959,-500.0,0.00012899,2]
[324836442,1714365045969,-1181.75744818,0.00012977,2]
[324836443,1714365045978,-266.6584164,0.00012977,2]
[324836444,1714365045988,-150.0,0.0001298,2]
[324836445,1714365045997,-568.0,0.00012986,2]
[324836446,1714365046007,-619.75133106,0.00012987,2]
[324836447,1714365046016,-500.0,0.00012987,2]
[324836448,1714365046025,-1151.88,0.00012987,2]
[324836449,1714365046034,-500.0,0.00012987,2]
[324836450,1714365046044,-521.17,0.00012987,2]
[324836451,1714365046053,-500.0,0.00012987,2]
[324836452,1714365046062,-500.0,0.00012987,2]
[324836453,1714365046071,-500.0,0.00012987,2]
[324836454,1714365046080,-500.0,0.00012987,2]
[324836455,1714365046091,-500.0,0.00012987,2]
[324836456,1714365046099,-1009.46,0.00012987,2]
[324836457,1714365046109,-969.67,0.00012987,2]
[324836458,1714365046118,-500.0,0.00012987,2]
[324836459,1714365046127,-611.6,0.00012987,2]
[324836460,1714365046136,-1579.14,0.00012987,2]
[324836461,1714365046145,-668.07,0.00012987,2]
[324836462,1714365046154,-809.62,0.00012987,2]
[324836463,1714365046163,-500.0,0.00012987,2]
[324836464,1714365046172,-500.0,0.00012987,2]
[324836465,1714365046182,-500.0,0.00012987,2]
[324836466,1714365046192,-500.0,0.00012987,2]
[324836467,1714365046201,-2583.16,0.00012987,2]
[324836468,1714365046210,-776.15,0.00012987,2]
[324836470,1714365046220,-500.0,0.00012987,2]
[324836472,1714365046229,-500.0,0.00012987,2]
[324836474,1714365046239,-39189.99849398,0.00012988,2]
[324836475,1714365046248,-500.0,0.00012988,2]
[324836478,1714365046258,-500.0,0.00012988,2]
[324836480,1714365046267,-500.0,0.00012988,2]
[324836481,1714365046276,-500.0,0.00012988,2]
[324836484,1714365046285,-500.0,0.00012988,2]
[324836486,1714365046294,-500.0,0.00012988,2]
[324836488,1714365046303,-548.44,0.00012988,2]
[324836490,1714365046312,-500.0,0.00012988,2]
[324836491,1714365046321,-565.66759768,0.00012988,2]
[324836493,1714365046330,-500.0,0.00012988,2]
[324836495,1714365046339,-500.0,0.00012988,2]
[324836498,1714365046349,-593.69,0.00012988,2]
[324836500,1714365046358,-500.0,0.00012988,2]
[324836502,1714365046367,-500.0,0.00012988,2]
[324836504,1714365046375,-500.0,0.00012988,2]
[324836506,1714365046385,-150.0,0.00012988,2]
[324836508,1714365046394,-500.0,0.00012988,2]
[324836510,1714365046403,-500.0,0.00012988,2]
[324836512,1714365046412,-500.0,0.00012988,2]
[324836514,1714365046421,-500.0,0.00012988,2]
[324836516,1714365046429,-288.52560592,0.00012988,2]
[324836518,1714365046438,-500.0,0.00012988,2]
[324836520,1714365046447,-500.0,0.00012988,2]
[324836522,1714365046456,-612.96,0.00012988,2]
[324836524,1714365046466,-500.0,0.00012988,2]
[324836525,1714365046475,-379.26,0.00012988,2]
[324836527,1714365046484,-500.0,0.00012988,2]
[324836528,1714365046493,-460.94,0.00012988,2]
[324836529,1714365046502,-156.68,0.00012988,2]
[324836530,1714365046511,-500.0,0.00012988,2]
[324836531,1714365046520,-500.0,0.00012988,2]
[324836532,1714365046530,-441.58504324,0.00012988,2]
[324836533,1714365046539,-500.0,0.00012988,2]
[324836534,1714365046548,-500.0,0.00012988,2]
[324836535,1714365046556,-223.96207189,0.00012988,2]
[324836536,1714365046565,-196.37725773,0.00012988,2]
[324836537,1714365046574,-500.0,0.00012988,2]
[324836538,1714365046583,-500.0,0.00012988,2]
[324836539,1714365046593,-335.58983287,0.00012988,2]
[324836540,1714365046602,-500.0,0.00012988,2]
[324836541,1714365046611,-2134.77,0.00012988,2]
[324836543,1714365046621,-1083.33,0.00012988,2]
[324836544,1714365046630,-500.0,0.00012988,2]
[324836545,1714365046639,-500.0,0.00012988,2]
[324836546,1714365046648,-500.0,0.00012988,2]
[324836548,1714365046657,-500.0,0.00012988,2]
[324836550,1714365046666,-252.61567485,0.00012988,2]
[324836551,1714365046675,-500.0,0.00012988,2]
[324836552,1714365046684,-572.84,0.00012988,2]
[324836553,1714365046693,-500.0,0.00012988,2]
[324836554,1714365046702,-221.19660192,0.00012988,2]
[324836555,1714365046711,-500.0,0.00012988,2]
[324836556,1714365046721,-157.43,0.00012988,2]
[324836557,1714365046730,-579.8209799,0.00012988,2]
[324836558,1714365046739,-511.06,0.00012988,2]
[324836559,1714365046748,-1929.32,0.00012988,2]
[324836560,1714365046757,-328.0576755,0.00012988,2]
[324836561,1714365046766,-500.0,0.00012988,2]
[324836562,1714365046775,-500.0,0.00012988,2]
[324836563,1714365046784,-500.0,0.00012988,2]
[324836564,1714365046793,-500.0,0.00012988,2]
[324836565,1714365046802,-322.44,0.00012988,2]
[324836566,1714365046812,-500.0,0.00012988,2]
[324836567,1714365046821,-500.0,0.00012988,2]
[324836568,1714365046830,-570.0,0.00012988,2]
[324836569,1714365046841,-319.17,0.00012988,2]
[324836570,1714365046852,-500.0,0.00012988,2]
[324836571,1714365046861,-1978.26,0.00012988,2]
[324836572,1714365046870,-500.0,0.00012988,2]
[324836573,1714365046879,-155.0,0.00012989,2]
[324836574,1714365046889,-500.0,0.00012989,2]
[324836575,1714365046898,-827.69,0.00012989,2]
[324836576,1714365046907,-2077.69,0.00012989,2]
[324836577,1714365046918,-885.38,0.00012989,2]
[324836578,1714365046927,-500.0,0.00012989,2]
[324836579,1714365046936,-287.8621784,0.00012989,2]
[324836580,1714365046945,-584.32248139,0.00012989,2]
[324836581,1714365046954,-833.93,0.00012989,2]
[324836582,1714365046963,-500.0,0.00012989,2]
[324836583,1714365046973,-276.0,0.00012989,2]
[324836584,1714365046982,-500.0,0.00012989,2]
[324836585,1714365046991,-500.0,0.00012989,2]
[324836586,1714365047000,-500.0,0.00012989,2]
[324836587,1714365047010,-731.02,0.00012989,2]
[324836588,1714365047019,-6292.43,0.00012989,2]
[324836589,1714365047028,-1526.76,0.00012989,2]
[324836590,1714365047037,-500.0,0.00012989,2]
[324836591,1714365047047,-500.0,0.00012989,2]
[324836592,1714365047056,-324.14426977,0.00012989,2]
[324836593,1714365047066,-509.09774208,0.00012989,2]
[324836594,1714365047076,-160.495341,0.00012989,2]
[324836595,1714365047085,-925.0,0.0001299,2]
[324836596,1714365047095,-7222.61921765,0.0001299,2]
[324836597,1714365047119,-47556.91513106,0.0001299,2]
[324836603,1714365644829,150.0,0.00022716,120]
[324836604,1714365690835,150.0,0.00023931,120]
[324836608,1714365811366,150.0,0.00022798,120]
[324836611,1714365938944,164.18,9.338e-05,2]
[324836612,1714365976946,5835.82,9.338e-05,2]
[324836613,1714365976968,14347.08917099,9.338e-05,2]
[324836614,1714365999571,1000.15635452,9.338e-05,2]
[324836620,1714366032575,943.66867027,9.338e-05,2]
[324836622,1714366050586,944.50504437,9.338e-05,2]
[324836623,1714366050969,150.0,0.00022416,120]
[324836624,1714366110878,150.0,0.00022009,120]
[324836646,1714366231412,150.0,0.00022617,120]
[324836659,1714366231802,-347.17,9.835e-05,2]
[324836660,1714366231813,-86.49532984,0.00011517,2]
[324836661,1714366231825,-394.98667015,0.00011517,2]
[324836662,1714366231835,-517.71,0.00011617,2]
[324836663,1714366231844,-386.72417435,0.00011658,2]
[324836664,1714366231889,-3131.75,0.00011658,2]
[324836665,1714366231976,-2589.75849578,0.00011658,2]
[324836914,1714366238088,-490.1733676,0.00011658,2]
[324836915,1714366238100,-1252.86,0.00011658,2]
[324836916,1714366238112,-1053.30928881,0.00011658,2]
[324836917,1714366238177,-1548.40046312,0.00011658,2]
[324836918,1714366238264,-845.8152425,0.00011658,2]
[324836934,1714366239870,-1878.76242396,0.00011658,2]
[324836937,1714366239889,-656.05,0.00011658,2]
[324836955,1714366240047,-1635.31654388,0.00011658,2]
[324836957,1714366240056,-2000.0,0.00011705,3]
[324836959,1714366240065,-697.4248,0.00011742,2]
[324836961,1714366240074,-150.0,0.00011753,2]
[324836963,1714366240084,-150.16,0.00011768,2]
[324836964,1714366240093,-150.0,0.00011781,2]
[324836965,1714366240103,-1000.0,0.00011798,2]
[324836966,1714366240112,-255.81,0.00011918,2]
[324836967,1714366240122,-347.17,0.00012098,2]
[324836968,1714366240131,-519.0,0.00012301,2]
[324836969,1714366240140,-150.0,0.0001241,3]
[324836970,1714366240149,-166.96379572,0.00012655,2]
[324836971,1714366240159,-155.0,0.00012799,2]
[324836972,1714366240172,-2334.2326487,0.000128,2]
[324836973,1714366240184,-3096.18912661,0.000128,2]
[324836974,1714366240196,-2183.54272469,0.000128,2]
[324836975,1714366240205,-519.0,0.00012849,2]
[324836976,1714366240215,-869.3169,0.0001286,2]
[324836977,1714366240224,-315.0,0.00012877,2]
[324836978,1714366240234,-1000.0,0.00012886,2]
[324836979,1714366240243,-500.0,0.00012886,2]
[324836980,1714366240255,-2424.4322,0.00012889,2]
[324836981,1714366240266,-1421.0087,0.0001289,2]
[324836982,1714366240275,-355.24024923,0.00012897,2]
[324836983,1714366240285,-308.04572919,0.00012898,2]
[324836984,1714366240294,-500.0,0.00012898,2]
[324836985,1714366240303,-500.0,0.00012898,2]
[324836986,1714366240312,-500.0,0.00012898,2]
[324836987,1714366240322,-500.0,0.00012898,2]
[324836988,1714366240331,-334.04634513,0.00012898,2]
[324836989,1714366240340,-500.0,0.00012898,2]
[324836990,1714366240350,-500.0,0.00012898,2]
[324836991,1714366240359,-500.0,0.00012898,2]
[324836992,1714366240368,-500.0,0.00012898,2]
[324836993,1714366240377,-500.0,0.00012898,2]
[324836994,1714366240387,-604.72447415,0.00012898,2]
[324836995,1714366240396,-500.0,0.00012898,2]
[324836996,1714366240405,-500.0,0.00012898,2]
[324836997,1714366240415,-500.0,0.00012898,2]
[324836998,1714366240425,-500.0,0.00012898,2]
[324836999,1714366240433,-502.86131429,0.00012898,2]
[324837000,1714366240443,-524.35,0.00012898,2]
[324837001,1714366240452,-500.0,0.00012898,2]
[324837002,1714366240461,-500.0,0.00012898,2]
[324837003,1714366240470,-518.78554521,0.00012898,2]
[324837004,1714366240479,-500.0,0.00012898,2]
[324837005,1714366240488,-509.3731658,0.00012898,2]
[324837006,1714366240497,-641.74577681,0.00012898,2]
[324837007,1714366240508,-464.45026002,0.00012898,2]
[324837008,1714366240516,-513.78676204,0.00012898,2]
[324837009,1714366240525,-530.97858657,0.00012898,2]
[324837010,1714366240534,-514.96250041,0.00012898,2]
[324837011,1714366240544,-515.84084459,0.00012898,2]
[324837012,1714366240552,-500.0,0.00012898,2]
[324837013,1714366240562,-521.92135203,0.00012898,2]
[324837014,1714366240571,-511.68630656,0.00012898,2]
[324837015,1714366240580,-500.0,0.00012898,2]
[324837016,1714366240589,-500.0,0.00012898,2]
[324837017,1714366240598,-512.35430649,0.00012898,2]
[324837018,1714366240607,-508.68585736,0.00012898,2]
[324837019,1714366240616,-511.28515501,0.00012898,2]
[324837020,1714366240625,-500.0,0.00012898,2]
[324837021,1714366240634,-911.84,0.00012898,2]
[324837022,1714366240643,-530.94664454,0.00012898,2]
[324837023,1714366240652,-500.0,0.00012898,2]
[324837024,1714366240661,-500.0,0.00012898,2]
[324837025,1714366240670,-500.0,0.00012898,2]
[324837026,1714366240679,-524.87648638,0.00012898,2]
[324837027,1714366240688,-512.52124563,0.00012898,2]
[324837028,1714366240697,-518.81709153,0.00012898,2]
[324837029,1714366240707,-500.0,0.00012898,2]
[324837030,1714366240717,-967.4,0.00012898,2]
[324837031,1714366240725,-595.26099383,0.00012898,2]
[324837032,1714366240734,-500.0,0.00012898,2]
[324837033,1714366240743,-507.99424901,0.00012898,2]
[324837034,1714366240752,-525.07333358,0.00012898,2]
[324837035,1714366240762,-500.0,0.00012898,2]
[324837036,1714366240771,-500.0,0.00012898,2]
[324837037,1714366240780,-501.97341037,0.00012898,2]
[324837038,1714366240788,-514.10947368,0.00012898,2]
[324837039,1714366240798,-501.60552451,0.00012898,2]
[324837040,1714366240807,-523.43657518,0.00012898,2]
[324837041,1714366240816,-517.85461402,0.00012898,2]
[324837042,1714366240825,-500.0,0.00012898,2]
[324837043,1714366240834,-948.21,0.00012898,2]
[324837044,1714366240843,-503.70943661,0.00012898,2]
[324837045,1714366240852,-508.69934062,0.00012898,2]
[324837046,1714366240861,-508.39328802,0.00012898,2]
[324837047,1714366240871,-500.0,0.00012898,2]
[324837048,1714366240885,-500.0,0.00012898,2]
[324837049,1714366240894,-505.28121617,0.00012898,2]
[324837050,1714366240903,-379.18,0.00012898,2]
[324837051,1714366240912,-508.82048792,0.00012898,2]
[324837052,1714366240921,-512.11980711,0.00012898,2]
[324837053,1714366240931,-500.0,0.00012898,2]
[324837054,1714366240940,-506.7376356,0.00012898,2]
[324837055,1714366240949,-500.0,0.00012898,2]
[324837056,1714366240957,-511.55491906,0.00012898,2]
[324837057,1714366240966,-1513.34,0.00012898,2]
[324837058,1714366240975,-510.45179077,0.00012898,2]
[324837059,1714366240984,-596.57792642,0.00012898,2]
[324837060,1714366240994,-518.50261893,0.00012898,2]
[324837061,1714366241003,-550.1226207,0.00012898,2]
[324837062,1714366241016,-503.50694534,0.00012898,2]
[324837063,1714366241025,-505.8579632,0.00012898,2]
[324837064,1714366241034,-831.06,0.00012898,2]
[324837065,1714366241043,-511.22177629,0.00012898,2]
[324837066,1714366241052,-522.329087,0.00012898,2]
[324837067,1714366241062,-775.88,0.00012898,2]
[324837068,1714366241071,-536.31044691,0.00012898,2]
[324837069,1714366241081,-500.0,0.00012898,2]
[324837070,1714366241090,-511.12913516,0.00012898,2]
[324837071,1714366241100,-516.36764626,0.00012898,2]
[324837072,1714366241108,-500.0,0.00012898,2]
[324837073,1714366241118,-500.0,0.00012898,2]
[324837074,1714366241127,-520.35363426,0.00012898,2]
[324837075,1714366241136,-520.96310953,0.00012898,2]
[324837076,1714366241146,-510.19393077,0.00012898,2]
[324837077,1714366241155,-500.0,0.00012898,2]
[324837078,1714366241164,-500.0,0.00012898,2]
[324837079,1714366241175,-500.0,0.00012898,2]
[324837080,1714366241186,-500.0,0.00012898,2]
[324837081,1714366241195,-799.75,0.00012898,2]
[324837082,1714366241204,-511.90847381,0.00012898,2]
[324837083,1714366241214,-521.11821583,0.00012898,2]
[324837084,1714366241223,-901.84,0.00012898,2]
[324837085,1714366241232,-519.19887187,0.00012898,2]
[324837086,1714366241241,-500.0,0.00012898,2]
[324837087,1714366241251,-506.07071018,0.00012898,2]
[324837088,1714366241457,-514.24131047,0.00012898,2]
[324837089,1714366241466,-523.48375123,0.00012898,2]
[324837090,1714366241475,-500.0,0.00012898,2]
[324837091,1714366241484,-508.22915169,0.00012898,2]
[324837092,1714366241493,-500.0,0.00012898,2]
[324837093,1714366241502,-500.0,0.00012898,2]
[324837094,1714366241512,-517.80068953,0.00012898,2]
[324837095,1714366241522,-603.27561714,0.00012898,2]
[324837096,1714366241531,-500.0,0.00012898,2]
[324837097,1714366241540,-743.81,0.00012898,2]
[324837098,1714366241549,-484.19614376,0.00012898,2]
[324837099,1714366241559,-506.34536329,0.00012898,2]
[324837100,1714366241568,-500.0,0.00012898,2]
[324837101,1714366241577,-500.0,0.00012898,2]
[324837102,1714366241586,-516.72839949,0.00012898,2]
[324837103,1714366241595,-551.6234993,0.00012898,2]
[324837104,1714366241604,-638.86200258,0.00012898,2]
[324837105,1714366241613,-517.42892896,0.00012898,2]
[324837106,1714366241622,-513.12640995,0.00012898,2]
[324837107,1714366241631,-512.54879469,0.00012898,2]
[324837108,1714366241639,-504.54523321,0.00012898,2]
[324837109,1714366241648,-756.75,0.00012898,2]
[324837110,1714366241657,-511.09522786,0.00012898,2]
[324837111,1714366241667,-508.54718198,0.00012898,2]
[324837112,1714366241676,-507.70278081,0.00012898,2]
[324837113,1714366241685,-506.07068508,0.00012898,2]
[324837114,1714366241693,-535.4667846,0.00012898,2]
[324837115,1714366241702,-502.25847374,0.00012898,2]
[324837116,1714366241711,-500.0,0.00012898,2]
[324837117,1714366241720,-506.46337882,0.00012898,2]
[324837118,1714366241730,-500.0,0.00012898,2]
[324837119,1714366241739,-523.96224467,0.00012898,2]
[324837120,1714366241748,-512.16368153,0.00012898,2]
[324837121,1714366241758,-4384.07,0.00012898,2]
[324837122,1714366241767,-563.29294677,0.00012898,2]
[324837123,1714366241776,-516.7179479,0.00012898,2]
[324837124,1714366241785,-402.28,0.00012898,2]
[324837125,1714366241794,-500.0,0.00012898,2]
[324837126,1714366241803,-500.0,0.00012898,2]
[324837127,1714366241812,-500.0,0.00012898,2]
[324837128,1714366241821,-520.46533214,0.00012898,2]
[324837129,1714366241831,-508.1894251,0.00012898,2]
[324837130,1714366241840,-672.8,0.00012898,2]
[324837131,1714366241849,-500.0,0.00012898,2]
[324837132,1714366241858,-500.45859188,0.00012898,2]
[324837133,1714366241867,-515.79062562,0.00012898,2]
[324837134,1714366241876,-511.04777948,0.00012898,2]
[324837135,1714366241885,-500.0,0.00012898,2]
[324837136,1714366241894,-500.0,0.00012898,2]
[324837137,1714366241904,-502.96711277,0.00012898,2]
[324837138,1714366241913,-509.47986011,0.00012898,2]
[324837139,1714366241923,-500.0,0.00012898,2]
[324837140,1714366241932,-506.23140609,0.00012898,2]
[324837141,1714366241941,-534.64654271,0.00012898,2]
[324837142,1714366241951,-521.5306016,0.00012898,2]
[324837143,1714366241960,-500.0,0.00012898,2]
[324837144,1714366241969,-501.58929757,0.00012898,2]
[324837145,1714366241978,-500.0,0.00012898,2]
[324837146,1714366241987,-504.87540669,0.00012898,2]
[324837147,1714366241996,-500.0,0.00012898,2]
[324837148,1714366242005,-540.18964994,0.00012898,2]
[324837149,1714366242015,-507.35192252,0.00012898,2]
[324837150,1714366242023,-504.40905123,0.00012898,2]
[324837151,1714366242033,-592.64359926,0.00012898,2]
[324837152,1714366242042,-531.60752377,0.00012898,2]
[324837153,1714366242051,-516.49739444,0.00012899,2]
[324837154,1714366242060,-508.20967465,0.00012899,2]
[324837155,1714366242069,-553.95851005,0.00012899,2]
[324837156,1714366242078,-501.74253656,0.00012899,2]
[324837157,1714366242088,-505.80259578,0.00012899,2]
[324837158,1714366242097,-505.88371654,0.00012899,2]
[324837159,1714366242106,-509.98993522,0.00012899,2]
[324837160,1714366242115,-508.97057534,0.00012899,2]
[324837161,1714366242125,-503.13137254,0.00012899,2]
[324837162,1714366242134,-500.0,0.00012899,2]
[324837163,1714366242143,-500.0,0.00012899,2]
[324837164,1714366242152,-500.0,0.00012899,2]
[324837165,1714366242162,-500.0,0.00012899,2]
[324837166,1714366242171,-514.45510346,0.00012899,2]
[324837167,1714366242186,-514.90871176,0.00012899,2]
[324837168,1714366242195,-522.856446,0.00012899,2]
[324837169,1714366242205,-502.77985587,0.00012899,2]
[324837170,1714366242215,-513.23929381,0.00012899,2]
[324837171,1714366242224,-502.21791587,0.00012899,2]
[324837172,1714366242234,-528.47415921,0.00012899,2]
[324837173,1714366242243,-515.88000352,0.00012899,2]
[324837174,1714366242252,-601.44879955,0.00012899,2]
[324837175,1714366242263,-506.58369426,0.00012899,2]
[324837176,1714366242273,-503.00927455,0.00012899,2]
[324837177,1714366242282,-511.62399723,0.00012899,2]
[324837178,1714366242291,-509.89139274,0.00012899,2]
[324837179,1714366242301,-511.99882484,0.00012899,2]
[324837180,1714366242310,-607.00584087,0.00012899,2]
[324837181,1714366242320,-251.16485006,0.00012899,2]
[324837182,1714366242330,-507.34072572,0.00012899,2]
[324837183,1714366242339,-570.65333111,0.00012899,2]
[324837184,1714366242349,-504.03164394,0.00012899,2]
[324837185,1714366242358,-508.97331629,0.00012899,2]
[324837186,1714366242367,-511.39208981,0.00012899,2]
[324837187,1714366242376,-512.9151201,0.00012899,2]
[324837188,1714366242385,-544.51695709,0.00012899,2]
[324837189,1714366242395,-506.55340717,0.00012899,2]
[324837190,1714366242404,-555.77935179,0.00012899,2]
[324837191,1714366242412,-515.1946741,0.00012899,2]
[324837192,1714366242422,-513.99654003,0.00012899,2]
[324837193,1714366242431,-526.43267055,0.00012899,2]
[324837194,1714366242440,-500.80368956,0.00012899,2]
[324837195,1714366242449,-504.84371182,0.00012899,2]
[324837196,1714366242458,-506.81095387,0.00012899,2]
[324837197,1714366242467,-511.49396726,0.00012899,2]
[324837198,1714366242476,-518.76128808,0.00012899,2]
[324837199,1714366242485,-626.15834572,0.00012899,2]
[324837200,1714366242494,-503.63419831,0.00012899,2]
[324837201,1714366242503,-512.41437819,0.00012899,2]
[324837202,1714366242511,-514.46454801,0.00012899,2]
[324837203,1714366242520,-536.20126645,0.00012899,2]
[324837204,1714366242530,-531.7084711,0.00012899,2]
[324837205,1714366242539,-525.64528377,0.00012899,2]
[324837206,1714366242548,-500.0,0.00012899,2]
[324837207,1714366242557,-512.34455938,0.00012899,2]
[324837208,1714366242566,-514.04830552,0.00012899,2]
[324837209,1714366242575,-585.38456809,0.00012899,2]
[324837210,1714366242584,-511.78496376,0.00012899,2]
[324837211,1714366242593,-508.86343282,0.00012899,2]
[324837212,1714366242602,-513.79624641,0.00012899,2]
[324837213,1714366242611,-577.34666716,0.00012899,2]
[324837214,1714366242620,-526.89088982,0.00012899,2]
[324837215,1714366242629,-502.35881395,0.00012899,2]
[324837216,1714366242638,-508.22857817,0.00012899,2]
[324837217,1714366242648,-503.72905845,0.00012899,2]
[324837218,1714366242657,-511.38704154,0.00012899,2]
[324837219,1714366242666,-519.69388519,0.00012899,2]
[324837220,1714366242675,-648.12178867,0.00012899,2]
[324837221,1714366242684,-509.00901782,0.00012899,2]
[324837222,1714366242693,-513.60301438,0.00012899,2]
[324837225,1714366242702,-537.41399289,0.00012899,2]
[324837226,1714366242712,-500.0,0.00012899,2]
[324837229,1714366242721,-512.01628168,0.00012899,2]
[324837231,1714366242731,-614.06763351,0.00012899,2]
[324837233,1714366242739,-513.75421821,0.00012899,2]
[324837235,1714366242749,-503.08322898,0.00012899,2]
[324837237,1714366242758,-508.52039433,0.00012899,2]
[324837239,1714366242768,-642.12407615,0.00012899,2]
[324837241,1714366242777,-502.25688834,0.00012899,2]
[324837245,1714366242786,-508.99131274,0.00012899,2]
[324837248,1714366242796,-526.99003128,0.00012899,2]
[324837250,1714366242805,-512.5333572,0.00012899,2]
[324837251,1714366242814,-502.48403351,0.00012899,2]
[324837255,1714366242823,-512.10094518,0.00012899,2]
[324837258,1714366242833,-512.41030347,0.00012899,2]
[324837260,1714366242842,-517.77613695,0.00012899,2]
[324837263,1714366242850,-563.98749651,0.00012899,2]
[324837265,1714366242860,-511.92348228,0.00012899,2]
[324837267,1714366242868,-521.30284212,0.00012899,2]
[324837269,1714366242877,-531.08465118,0.00012899,2]
[324837271,1714366242886,-501.88717987,0.00012899,2]
[324837272,1714366242895,-509.98753315,0.00012899,2]
[324837274,1714366242904,-647.38295789,0.00012899,2]
[324837276,1714366242913,-514.10881859,0.00012899,2]
[324837278,1714366242922,-506.33145299,0.00012899,2]
[324837280,1714366242932,-504.03826197,0.00012899,2]
[324837282,1714366242941,-627.4870823,0.00012899,2]
[324837284,1714366242950,-504.9623471,0.00012899,2]
[324837286,1714366242959,-508.16593444,0.00012899,2]
[324837288,1714366242969,-506.42300325,0.00012899,2]
[324837290,1714366242978,-575.48877832,0.00012899,2]
[324837292,1714366242987,-513.77563949,0.00012899,2]
[324837294,1714366242996,-569.34656038,0.00012899,2]
[324837296,1714366243005,-503.79606913,0.00012899,2]
[324837298,1714366243015,-504.95657274,0.00012899,2]
[324837300,1714366243024,-500.0,0.00012899,2]
[324837301,1714366243034,-519.28992375,0.00012899,2]
[324837303,1714366243043,-518.5024688,0.00012899,2]
[324837304,1714366243052,-505.10917833,0.00012899,2]
[324837305,1714366243062,-505.36992481,0.00012899,2]
[324837306,1714366243071,-512.05281309,0.00012899,2]
[324837307,1714366243080,-506.39728069,0.00012899,2]
[324837308,1714366243089,-500.0,0.00012899,2]
[324837309,1714366243099,-502.07483831,0.00012899,2]
[324837310,1714366243107,-565.34014602,0.00012899,2]
[324837311,1714366243117,-510.0752601,0.00012899,2]
[324837312,1714366243126,-509.80734851,0.00012899,2]
[324837313,1714366243137,-504.17877825,0.00012899,2]
[324837314,1714366243146,-504.93214536,0.00012899,2]
[324837315,1714366243155,-503.96989544,0.00012899,2]
[324837316,1714366243164,-507.69418679,0.00012899,2]
[324837317,1714366243175,-567.40051125,0.00012899,2]
[324837318,1714366243186,-500.82290348,0.00012899,2]
[324837319,1714366243195,-518.08953141,0.00012899,2]
[324837320,1714366243204,-524.50259395,0.00012899,2]
[324837321,1714366243214,-503.71520043,0.00012899,2]
[324837322,1714366243224,-500.0,0.00012899,2]
[324837323,1714366243233,-500.0,0.00012899,2]
[324837324,1714366243242,-500.0,0.00012899,2]
[324837325,1714366243253,-201.05110466,0.00012899,2]
[324837326,1714366243264,-405.28079689,0.00012899,2]
[324837327,1714366243274,-500.0,0.00012899,2]
[324837328,1714366243283,-509.45659863,0.00012899,2]
[324837329,1714366243292,-503.89440167,0.00012899,2]
[324837331,1714366243301,-505.82842313,0.00012899,2]
[324837333,1714366243311,-500.0,0.00012899,2]
[324837335,1714366243320,-500.0,0.00012899,2]
[324837337,1714366243333,-521.48603995,0.00012899,2]
[324837338,1714366243346,-500.0,0.00012899,2]
[324837339,1714366243358,-500.0,0.00012899,2]